[Event "GrandPrix_30.05"]
[Site "Chess.com"]
[Date "2020.05.30"]
[Round "3"]
[White "Yurovskykh_Alexander"]
[Black "Guenplen"]
[Result "1/2-1/2"]
[WhiteElo "2343"]
[BlackElo "2509"]
[TimeControl "600+2"]
[EndTime "9:26:12 PDT"]
[Termination "Game drawn - insufficient material"]

1. d4 {[%clk 0:09:56.6]} 1... d5 {[%clk 0:09:58.5]} 2. Bf4 {[%clk 0:09:54.6]}
2... c5 {[%clk 0:09:58.9]} 3. e3 {[%clk 0:09:55.1]} 3... Nc6 {[%clk 0:09:59.8]}
4. c3 {[%clk 0:09:51.9]} 4... Bf5 {[%clk 0:09:57.9]} 5. Nd2 {[%clk 0:09:49.7]}
5... e6 {[%clk 0:09:56.1]} 6. Ngf3 {[%clk 0:09:45.5]} 6... Qb6 {[%clk
0:09:49.9]} 7. Qb3 {[%clk 0:09:40]} 7... c4 {[%clk 0:09:49.1]} 8. Qxb6 {[%clk
0:09:40.9]} 8... axb6 {[%clk 0:09:51]} 9. e4 {[%clk 0:09:39.1]} 9... Bg6 {[%clk
0:08:27]} 10. exd5 {[%clk 0:09:24]} 10... exd5 {[%clk 0:08:28.9]} 11. a3 {[%clk
0:09:22.1]} 11... b5 {[%clk 0:08:22.8]} 12. Rc1 {[%clk 0:09:21.5]} 12... h6
{[%clk 0:08:04.3]} 13. Be2 {[%clk 0:09:20.2]} 13... Nf6 {[%clk 0:07:55.7]} 14.
O-O {[%clk 0:09:20.2]} 14... Be7 {[%clk 0:07:55.8]} 15. Rfe1 {[%clk 0:09:17.3]}
15... O-O {[%clk 0:07:36.5]} 16. Ne5 {[%clk 0:09:16.6]} 16... Bh7 {[%clk
0:07:13.9]} 17. Ng4 {[%clk 0:08:55.2]} 17... Nxg4 {[%clk 0:05:29.8]} 18. Bxg4
{[%clk 0:08:54.8]} 18... Bg5 {[%clk 0:05:23.1]} 19. Bxg5 {[%clk 0:08:36.9]}
19... hxg5 {[%clk 0:05:25]} 20. Nf1 {[%clk 0:07:11.4]} 20... Rad8 {[%clk
0:05:06.6]} 21. g3 {[%clk 0:06:59.2]} 21... f5 {[%clk 0:04:48.2]} 22. Bf3 {[%clk
0:06:58.2]} 22... f4 {[%clk 0:04:49]} 23. Bg4 {[%clk 0:06:37.6]} 23... Rf6
{[%clk 0:04:34.3]} 24. Nd2 {[%clk 0:06:32.4]} 24... fxg3 {[%clk 0:03:58.9]} 25.
hxg3 {[%clk 0:06:23.8]} 25... Rdf8 {[%clk 0:03:55.1]} 26. f3 {[%clk 0:06:13.8]}
26... Kf7 {[%clk 0:03:28.9]} 27. Re3 {[%clk 0:05:56.5]} 27... Re8 {[%clk
0:03:00.3]} 28. Rce1 {[%clk 0:05:54.8]} 28... Rxe3 {[%clk 0:02:57.7]} 29. Rxe3
{[%clk 0:05:56.7]} 29... Bf5 {[%clk 0:02:52.2]} 30. Bxf5 {[%clk 0:05:19.7]}
30... Rxf5 {[%clk 0:02:54.1]} 31. Kg2 {[%clk 0:05:21.1]} 31... Rf6 {[%clk
0:02:48.7]} 32. Nf1 {[%clk 0:05:07.3]} 32... Rh6 {[%clk 0:02:02.8]} 33. Nh2
{[%clk 0:04:52]} 33... Re6 {[%clk 0:02:03.3]} 34. Ng4 {[%clk 0:04:52.5]} 34...
Rxe3 {[%clk 0:02:00]} 35. Nxe3 {[%clk 0:04:54.4]} 35... Ne7 {[%clk 0:01:49.1]}
36. Kh3 {[%clk 0:04:50.7]} 36... Kf6 {[%clk 0:01:45.6]} 37. Kg4 {[%clk
0:04:49.6]} 37... Kg6 {[%clk 0:01:46.9]} 38. f4 {[%clk 0:04:43.5]} 38... gxf4
{[%clk 0:01:47.5]} 39. gxf4 {[%clk 0:04:42.5]} 39... Kf6 {[%clk 0:01:41.3]} 40.
f5 {[%clk 0:04:39.7]} 40... g6 {[%clk 0:01:16.4]} 41. fxg6 {[%clk 0:04:39]}
41... Kxg6 {[%clk 0:01:18.3]} 42. Ng2 {[%clk 0:04:33.1]} 42... Kf7 {[%clk
0:01:10.6]} 43. Nf4 {[%clk 0:04:29.8]} 43... Kf6 {[%clk 0:01:11]} 44. Nh5+
{[%clk 0:04:26]} 44... Ke6 {[%clk 0:01:11.4]} 45. Ng7+ {[%clk 0:04:26.4]} 45...
Kd7 {[%clk 0:00:58.1]} 46. Kf4 {[%clk 0:04:08.3]} 46... Nc6 {[%clk 0:00:58]} 47.
Kf5 {[%clk 0:03:57.3]} 47... Kd6 {[%clk 0:00:54.4]} 48. Kf6 {[%clk 0:03:51.1]}
48... Kd7 {[%clk 0:00:22.7]} 49. Nf5 {[%clk 0:03:50.8]} 49... b6 {[%clk
0:00:23.8]} 50. Kf7 {[%clk 0:03:50.8]} 50... Nd8+ {[%clk 0:00:24]} 51. Kf6
{[%clk 0:03:51.2]} 51... Nc6 {[%clk 0:00:25.2]} 52. Ne3 {[%clk 0:03:29.8]} 52...
Kd6 {[%clk 0:00:25.9]} 53. Ng4 {[%clk 0:03:29.1]} 53... Na5 {[%clk 0:00:18]} 54.
Ne5 {[%clk 0:03:24]} 54... Nb3 {[%clk 0:00:18.5]} 55. Nf7+ {[%clk 0:03:24.2]}
55... Kd7 {[%clk 0:00:16.3]} 56. Ke5 {[%clk 0:02:56.6]} 56... Nc1 {[%clk
0:00:07.4]} 57. Kxd5 {[%clk 0:02:57]} 57... Nd3 {[%clk 0:00:08.8]} 58. Ne5+
{[%clk 0:02:51.1]} 58... Kc7 {[%clk 0:00:07.5]} 59. a4 {[%clk 0:02:12.7]} 59...
bxa4 {[%clk 0:00:04.1]} 60. Kxc4 {[%clk 0:01:44.2]} 60... Nxb2+ {[%clk 0:00:05]}
61. Kb4 {[%clk 0:01:44.2]} 61... Kd6 {[%clk 0:00:05.1]} 62. Ng4 {[%clk
0:01:19.6]} 62... Nd1 {[%clk 0:00:04]} 63. c4 {[%clk 0:01:12.7]} 63... Nb2
{[%clk 0:00:04.7]} 64. Ne3 {[%clk 0:01:11.2]} 64... a3 {[%clk 0:00:03.4]} 65.
Nc2 {[%clk 0:00:55.2]} 65... a2 {[%clk 0:00:04.4]} 66. Kb3 {[%clk 0:00:51.8]}
66... Nd3 {[%clk 0:00:05.3]} 67. Kxa2 {[%clk 0:00:48.8]} 67... Kc6 {[%clk
0:00:05.1]} 68. Kb3 {[%clk 0:00:47.9]} 68... b5 {[%clk 0:00:06.3]} 69. c5 {[%clk
0:00:12.3]} 69... Nxc5+ {[%clk 0:00:07]} 70. dxc5 {[%clk 0:00:13.4]} 70... Kxc5
{[%clk 0:00:08.9]} 71. Na3 {[%clk 0:00:14.9]} 71... b4 {[%clk 0:00:10.3]} 72.
Nc2 {[%clk 0:00:16.2]} 72... Kd6 {[%clk 0:00:11.3]} 73. Nxb4 {[%clk 0:00:18.1]}
1/2-1/2

[Event "GrandPrix_30.05"]
[Site "Chess.com"]
[Date "2020.05.30"]
[Round "3"]
[White "Yuri202062"]
[Black "Tyoma88888"]
[Result "1/2-1/2"]
[WhiteElo "1987"]
[BlackElo "2134"]
[TimeControl "600+2"]
[EndTime "9:26:13 PDT"]
[Termination "Game drawn - insufficient material"]

1. d4 {[%clk 0:09:35.6]} 1... d5 {[%clk 0:09:58.4]} 2. c4 {[%clk 0:09:35.5]}
2... e6 {[%clk 0:09:59.4]} 3. Nc3 {[%clk 0:09:35.8]} 3... Nf6 {[%clk 0:10:00.4]}
4. cxd5 {[%clk 0:09:35.2]} 4... exd5 {[%clk 0:10:02.3]} 5. Bg5 {[%clk
0:09:35.7]} 5... c6 {[%clk 0:10:04.2]} 6. Qc2 {[%clk 0:09:31.9]} 6... Be7 {[%clk
0:10:04.5]} 7. e3 {[%clk 0:09:32.2]} 7... Nbd7 {[%clk 0:09:54.3]} 8. Bd3 {[%clk
0:09:32.4]} 8... h6 {[%clk 0:09:55.4]} 9. Bh4 {[%clk 0:09:21.4]} 9... Nh5 {[%clk
0:09:54.3]} 10. Bxe7 {[%clk 0:09:17.8]} 10... Qxe7 {[%clk 0:09:56.2]} 11. Nge2
{[%clk 0:09:14.9]} 11... Nb6 {[%clk 0:09:28.8]} 12. O-O {[%clk 0:09:07.6]} 12...
O-O {[%clk 0:09:13.6]} 13. Rae1 {[%clk 0:09:06.7]} 13... g6 {[%clk 0:09:11.5]}
14. Nc1 {[%clk 0:08:53.3]} 14... Ng7 {[%clk 0:09:04.1]} 15. f3 {[%clk
0:08:53.3]} 15... Be6 {[%clk 0:09:01.2]} 16. e4 {[%clk 0:08:46.1]} 16... Rad8
{[%clk 0:08:56.2]} 17. Qf2 {[%clk 0:07:50.4]} 17... dxe4 {[%clk 0:08:29.3]} 18.
Nxe4 {[%clk 0:07:16.8]} 18... Nf5 {[%clk 0:08:21]} 19. Ne2 {[%clk 0:07:07.7]}
19... Kg7 {[%clk 0:07:44.9]} 20. g4 {[%clk 0:06:56.4]} 20... Nd6 {[%clk
0:07:38.1]} 21. Nc5 {[%clk 0:06:55.6]} 21... Bc4 {[%clk 0:07:21.7]} 22. Ng3
{[%clk 0:06:24.2]} 22... Qf6 {[%clk 0:07:17.7]} 23. Bxc4 {[%clk 0:05:59.9]}
23... Nbxc4 {[%clk 0:07:17.3]} 24. b3 {[%clk 0:05:44.3]} 24... Nb6 {[%clk
0:07:17]} 25. Nge4 {[%clk 0:03:39.9]} 25... Nxe4 {[%clk 0:06:15.8]} 26. Rxe4
{[%clk 0:03:40.6]} 26... Rfe8 {[%clk 0:05:43.7]} 27. Rfe1 {[%clk 0:03:31.8]}
27... Rxe4 {[%clk 0:04:57.7]} 28. Rxe4 {[%clk 0:03:32.6]} 28... Rb8 {[%clk
0:04:19.2]} 29. Qg3 {[%clk 0:03:22.6]} 29... Rd8 {[%clk 0:04:05.3]} 30. Qc7
{[%clk 0:03:18.8]} 30... Rd6 {[%clk 0:02:46.5]} 31. Kg2 {[%clk 0:02:51.4]} 31...
Nd5 {[%clk 0:02:27.4]} 32. Qxb7 {[%clk 0:02:47.3]} 32... Nf4+ {[%clk 0:02:18]}
33. Kg3 {[%clk 0:02:25.7]} 33... Rxd4 {[%clk 0:01:32]} 34. Nd7 {[%clk
0:01:22.8]} 34... Qd6 {[%clk 0:00:59.3]} 35. Ne5 {[%clk 0:01:22.7]} 35... Rxe4
{[%clk 0:00:31.8]} 36. Qxf7+ {[%clk 0:01:21.6]} 36... Kh8 {[%clk 0:00:32.8]} 37.
Qe8+ {[%clk 0:01:08]} 37... Kg7 {[%clk 0:00:32]} 38. fxe4 {[%clk 0:00:43.7]}
38... Nd3 {[%clk 0:00:14.8]} 39. Qd7+ {[%clk 0:00:42.6]} 39... Qxd7 {[%clk
0:00:15.9]} 40. Nxd7 {[%clk 0:00:43.8]} 40... Nb4 {[%clk 0:00:16.4]} 41. Nb8
{[%clk 0:00:32.4]} 41... c5 {[%clk 0:00:14]} 42. Nd7 {[%clk 0:00:32.5]} 42...
Nxa2 {[%clk 0:00:08.6]} 43. Nxc5 {[%clk 0:00:32.4]} 43... Kf6 {[%clk 0:00:09.8]}
44. Kf4 {[%clk 0:00:30.9]} 44... g5+ {[%clk 0:00:11]} 45. Ke3 {[%clk 0:00:31.8]}
45... Nb4 {[%clk 0:00:11.8]} 46. Kd4 {[%clk 0:00:28.5]} 46... Nc6+ {[%clk
0:00:11.9]} 47. Kd5 {[%clk 0:00:25.5]} 47... Ne5 {[%clk 0:00:13.2]} 48. h3
{[%clk 0:00:22.2]} 48... Ng6 {[%clk 0:00:09.6]} 49. Nd3 {[%clk 0:00:20.2]} 49...
Ke7 {[%clk 0:00:02.9]} 50. e5 {[%clk 0:00:15.4]} 50... Nf8 {[%clk 0:00:04]} 51.
Ke4 {[%clk 0:00:09.4]} 51... Ng6 {[%clk 0:00:03.8]} 52. Kf5 {[%clk 0:00:09.7]}
52... Nh4+ {[%clk 0:00:05.3]} 53. Ke4 {[%clk 0:00:10.2]} 53... Ng6 {[%clk
0:00:07.2]} 54. Kd5 {[%clk 0:00:10.6]} 54... Nf8 {[%clk 0:00:06.4]} 55. b4
{[%clk 0:00:09.2]} 55... Ne6 {[%clk 0:00:06.9]} 56. Ke4 {[%clk 0:00:09.5]} 56...
Nf8 {[%clk 0:00:07.9]} 57. Kf5 {[%clk 0:00:09.8]} 57... Kf7 {[%clk 0:00:07.5]}
58. Nc5 {[%clk 0:00:09.4]} 58... Ke7 {[%clk 0:00:08.9]} 59. e6 {[%clk
0:00:08.2]} 59... a6 {[%clk 0:00:09.5]} 60. Nxa6 {[%clk 0:00:06.9]} 60... Nxe6
{[%clk 0:00:10.9]} 61. Kg6 {[%clk 0:00:06.6]} 61... Nf4+ {[%clk 0:00:12.3]} 62.
Kxh6 {[%clk 0:00:07.5]} 62... Nxh3 {[%clk 0:00:14.2]} 63. Nc5 {[%clk 0:00:07.6]}
63... Kd6 {[%clk 0:00:15.4]} 64. Ne4+ {[%clk 0:00:08.3]} 64... Kc6 {[%clk
0:00:16.5]} 65. Nc3 {[%clk 0:00:07]} 65... Kb6 {[%clk 0:00:17.4]} 66. Kg6 {[%clk
0:00:08]} 66... Kc6 {[%clk 0:00:18]} 67. Kf5 {[%clk 0:00:08.4]} 67... Kd6 {[%clk
0:00:19.2]} 68. Ne4+ {[%clk 0:00:08.6]} 68... Kc6 {[%clk 0:00:18.6]} 69. Nxg5
{[%clk 0:00:09.5]} 69... Nf2 {[%clk 0:00:19.4]} 70. Ne4 {[%clk 0:00:10.4]} 70...
Nxg4 {[%clk 0:00:19.2]} 71. Kxg4 {[%clk 0:00:07.6]} 71... Kb5 {[%clk 0:00:20.6]}
72. Nc3+ {[%clk 0:00:07.3]} 72... Kxb4 {[%clk 0:00:22.5]} 1/2-1/2

[Event "GrandPrix_30.05"]
[Site "Chess.com"]
[Date "2020.05.30"]
[Round "3"]
[White "VincentKeymer"]
[Black "igorkovalenko"]
[Result "0-1"]
[WhiteElo "2623"]
[BlackElo "2421"]
[TimeControl "600+2"]
[EndTime "9:26:15 PDT"]
[Termination "igorkovalenko won by resignation"]

1. Nf3 {[%clk 0:09:58.6]} 1... Nf6 {[%clk 0:09:54.9]} 2. c4 {[%clk 0:09:59.2]}
2... b6 {[%clk 0:09:56]} 3. d4 {[%clk 0:09:55.9]} 3... e6 {[%clk 0:09:54.9]} 4.
g3 {[%clk 0:09:54.7]} 4... Ba6 {[%clk 0:09:55.7]} 5. Qc2 {[%clk 0:09:52.5]} 5...
Bb4+ {[%clk 0:09:23.8]} 6. Bd2 {[%clk 0:09:23]} 6... c5 {[%clk 0:09:24.2]} 7.
Bg2 {[%clk 0:09:12.7]} 7... Nc6 {[%clk 0:09:23.5]} 8. O-O {[%clk 0:08:08.5]}
8... Bxd2 {[%clk 0:09:13.3]} 9. Nbxd2 {[%clk 0:08:10.4]} 9... cxd4 {[%clk
0:09:14]} 10. b4 {[%clk 0:07:38.8]} 10... Bb7 {[%clk 0:08:51.1]} 11. Qb2 {[%clk
0:07:39.5]} 11... Qc7 {[%clk 0:08:24.1]} 12. b5 {[%clk 0:06:38.3]} 12... Ne7
{[%clk 0:08:12.7]} 13. Qxd4 {[%clk 0:06:35.4]} 13... O-O {[%clk 0:08:05.8]} 14.
Rfc1 {[%clk 0:06:33.5]} 14... Rac8 {[%clk 0:07:08.4]} 15. a4 {[%clk 0:06:10.3]}
15... Nf5 {[%clk 0:06:44.9]} 16. Qb2 {[%clk 0:05:52.5]} 16... Qc5 {[%clk
0:05:42.8]} 17. Nb3 {[%clk 0:05:15.2]} 17... Qb4 {[%clk 0:05:31.7]} 18. Qc3
{[%clk 0:05:09.7]} 18... Qe7 {[%clk 0:03:52.8]} 19. Nbd4 {[%clk 0:04:46.6]}
19... Nd6 {[%clk 0:01:51.6]} 20. Qb4 {[%clk 0:04:12.6]} 20... Rfe8 {[%clk
0:01:26.3]} 21. Ne5 {[%clk 0:03:56.8]} 21... Bxg2 {[%clk 0:01:23.3]} 22. Kxg2
{[%clk 0:03:58.7]} 22... Nfe4 {[%clk 0:01:19]} 23. Nd3 {[%clk 0:03:35.3]} 23...
Nc5 {[%clk 0:00:32.2]} 24. Nf3 {[%clk 0:03:12.5]} 24... Rc7 {[%clk 0:00:29.9]}
25. a5 {[%clk 0:03:06.3]} 25... Rec8 {[%clk 0:00:29.4]} 26. axb6 {[%clk
0:03:02.5]} 26... axb6 {[%clk 0:00:31.3]} 27. Nxc5 {[%clk 0:02:53.7]} 27... Rxc5
{[%clk 0:00:33.2]} 28. Ra6 {[%clk 0:02:46.4]} 28... Qd8 {[%clk 0:00:34]} 29. Nd4
{[%clk 0:02:06.8]} 29... Qc7 {[%clk 0:00:17.1]} 30. Qb3 {[%clk 0:01:10.1]} 30...
Nxb5 {[%clk 0:00:13.6]} 31. Nf3 {[%clk 0:01:01.2]} 31... Qb7 {[%clk 0:00:09.6]}
32. Rca1 {[%clk 0:00:56.5]} 32... Nd4 {[%clk 0:00:09.2]} 33. Qxb6 {[%clk
0:00:56.7]} 33... Qxb6 {[%clk 0:00:10]} 34. Rxb6 {[%clk 0:00:58.6]} 34... Nxf3
{[%clk 0:00:11]} 35. Kxf3 {[%clk 0:00:59.2]} 35... Rxc4 {[%clk 0:00:12.4]} 36.
Ra7 {[%clk 0:00:58.7]} 36... Rd4 {[%clk 0:00:12.8]} 37. Rbb7 {[%clk 0:00:54.8]}
37... Rd8 {[%clk 0:00:13.8]} 38. e4 {[%clk 0:00:51.4]} 38... f6 {[%clk
0:00:13.7]} 39. Ke3 {[%clk 0:00:52.5]} 39... Rd6 {[%clk 0:00:14]} 40. f4 {[%clk
0:00:46.5]} 40... Kf7 {[%clk 0:00:15.2]} 41. f5 {[%clk 0:00:46.4]} 41... e5
{[%clk 0:00:15.2]} 42. Rb3 {[%clk 0:00:40.3]} 42... Ke7 {[%clk 0:00:16.4]} 43.
Rc3 {[%clk 0:00:40.7]} 43... Rb8 {[%clk 0:00:16.9]} 44. Ra4 {[%clk 0:00:39.5]}
44... g6 {[%clk 0:00:17.8]} 45. g4 {[%clk 0:00:39.5]} 45... Rb1 {[%clk
0:00:17.4]} 46. Rc2 {[%clk 0:00:37.3]} 46... Re1+ {[%clk 0:00:17.8]} 47. Re2
{[%clk 0:00:36.4]} 47... Rf1 {[%clk 0:00:18.5]} 48. Rc4 {[%clk 0:00:32.4]} 48...
Rf4 {[%clk 0:00:19]} 49. fxg6 {[%clk 0:00:24]} 49... hxg6 {[%clk 0:00:20.9]} 50.
h3 {[%clk 0:00:25.4]} 50... g5 {[%clk 0:00:21.2]} 51. Rf2 {[%clk 0:00:19.3]}
51... Ra6 {[%clk 0:00:21.4]} 52. Rd2 {[%clk 0:00:17.6]} 52... Ra3+ {[%clk
0:00:21.4]} 53. Ke2 {[%clk 0:00:18.9]} 53... Rxh3 {[%clk 0:00:21.1]} 54. Kd1
{[%clk 0:00:18.9]} 54... Rh1+ {[%clk 0:00:17.6]} 55. Kc2 {[%clk 0:00:19.5]}
55... Rh8 {[%clk 0:00:19.5]} 56. Rg2 {[%clk 0:00:18]} 56... Rh4 {[%clk
0:00:18.8]} 57. Rd2 {[%clk 0:00:18.5]} 57... Rh8 {[%clk 0:00:18.7]} 58. Rg2
{[%clk 0:00:18.9]} 58... Ke6 {[%clk 0:00:19.6]} 59. Ra4 {[%clk 0:00:19.1]} 59...
Rc8+ {[%clk 0:00:19.9]} 60. Kd3 {[%clk 0:00:19.9]} 60... Rc6 {[%clk 0:00:20.4]}
61. Ke3 {[%clk 0:00:16.6]} 61... Rb6 {[%clk 0:00:21.5]} 62. Rd2 {[%clk
0:00:10.7]} 62... Rxg4 {[%clk 0:00:20.4]} 63. Ra7 {[%clk 0:00:11.2]} 63... Rd6
{[%clk 0:00:20.5]} 64. Rxd6+ {[%clk 0:00:09.9]} 64... Kxd6 {[%clk 0:00:22.4]}
65. Ra6+ {[%clk 0:00:11.5]} 65... Ke7 {[%clk 0:00:23.3]} 66. Kf3 {[%clk
0:00:13.2]} 66... Rf4+ {[%clk 0:00:24.4]} 67. Ke3 {[%clk 0:00:14.8]} 67... Rh4
{[%clk 0:00:23]} 68. Ra1 {[%clk 0:00:15.9]} 68... Rh3+ {[%clk 0:00:24.1]} 69.
Ke2 {[%clk 0:00:16.8]} 69... Ke6 {[%clk 0:00:25]} 70. Ra6+ {[%clk 0:00:17.6]}
70... d6 {[%clk 0:00:26.2]} 71. Rb6 {[%clk 0:00:19.5]} 71... g4 {[%clk
0:00:26.4]} 72. Kf2 {[%clk 0:00:20.9]} 72... Rf3+ {[%clk 0:00:27]} 73. Ke2
{[%clk 0:00:22.3]} 73... Rf4 {[%clk 0:00:26.1]} 74. Ke3 {[%clk 0:00:23.7]} 74...
g3 {[%clk 0:00:27.4]} 75. Rb2 {[%clk 0:00:24.6]} 75... f5 {[%clk 0:00:25.1]} 76.
exf5+ {[%clk 0:00:22.1]} 76... Kxf5 {[%clk 0:00:27]} 77. Rg2 {[%clk 0:00:23.6]}
77... Kg4 {[%clk 0:00:28]} 0-1

[Event "GrandPrix_30.05"]
[Site "Chess.com"]
[Date "2020.05.30"]
[Round "3"]
[White "aleksandrovaleksei"]
[Black "Meri-Arabidze"]
[Result "1/2-1/2"]
[WhiteElo "2472"]
[BlackElo "2170"]
[TimeControl "600+2"]
[EndTime "9:26:16 PDT"]
[Termination "Game drawn by repetition"]

1. d4 {[%clk 0:10:01.9]} 1... d5 {[%clk 0:10:00.3]} 2. c4 {[%clk 0:10:02.5]}
2... e6 {[%clk 0:10:01.3]} 3. Nc3 {[%clk 0:10:03.1]} 3... Nf6 {[%clk 0:10:01.8]}
4. cxd5 {[%clk 0:10:02.4]} 4... exd5 {[%clk 0:10:02.8]} 5. Bg5 {[%clk
0:10:02.7]} 5... c6 {[%clk 0:10:03.4]} 6. e3 {[%clk 0:10:03.1]} 6... Nbd7 {[%clk
0:10:03.8]} 7. Bd3 {[%clk 0:10:03.4]} 7... Be7 {[%clk 0:10:04.9]} 8. Nf3 {[%clk
0:10:01.6]} 8... O-O {[%clk 0:10:00.8]} 9. Qc2 {[%clk 0:09:56.2]} 9... Re8
{[%clk 0:09:35.5]} 10. O-O {[%clk 0:09:56.5]} 10... Nf8 {[%clk 0:09:28.7]} 11.
Rab1 {[%clk 0:09:54.7]} 11... g6 {[%clk 0:09:25]} 12. b4 {[%clk 0:09:53.5]}
12... a6 {[%clk 0:09:25.4]} 13. a4 {[%clk 0:09:53.5]} 13... Ne6 {[%clk
0:09:26.1]} 14. Bh4 {[%clk 0:09:53.6]} 14... Ng7 {[%clk 0:09:24.6]} 15. b5
{[%clk 0:09:53]} 15... axb5 {[%clk 0:09:25.2]} 16. axb5 {[%clk 0:09:53.2]} 16...
Bf5 {[%clk 0:08:51.8]} 17. bxc6 {[%clk 0:09:42.8]} 17... bxc6 {[%clk 0:08:48.4]}
18. Ne5 {[%clk 0:09:23.8]} 18... Bxd3 {[%clk 0:08:01.9]} 19. Qxd3 {[%clk
0:09:22.6]} 19... Rc8 {[%clk 0:07:32.5]} 20. Rb7 {[%clk 0:07:19.5]} 20... Rc7
{[%clk 0:06:53.7]} 21. Qa6 {[%clk 0:07:12]} 21... Qc8 {[%clk 0:06:40.4]} 22. Rb6
{[%clk 0:06:51.2]} 22... Nd7 {[%clk 0:04:45]} 23. Nxd7 {[%clk 0:05:55]} 23...
Qxd7 {[%clk 0:04:11.5]} 24. Bg3 {[%clk 0:05:32.9]} 24... Ra7 {[%clk 0:04:09.8]}
25. Qd3 {[%clk 0:05:18.2]} 25... Nf5 {[%clk 0:03:52.4]} 26. Rfb1 {[%clk
0:05:03.5]} 26... Bd8 {[%clk 0:03:24.7]} 27. Ra6 {[%clk 0:04:23.8]} 27... Nxg3
{[%clk 0:02:50.6]} 28. hxg3 {[%clk 0:04:22.7]} 28... h5 {[%clk 0:02:44.8]} 29.
Rb8 {[%clk 0:03:06.3]} 29... Rb7 {[%clk 0:02:09.5]} 30. Rba8 {[%clk 0:01:54]}
30... Be7 {[%clk 0:01:38.3]} 31. Rxe8+ {[%clk 0:01:24.4]} 31... Qxe8 {[%clk
0:01:40.2]} 32. Qc2 {[%clk 0:01:25.3]} 32... Rb4 {[%clk 0:01:26.3]} 33. Ne2
{[%clk 0:01:07.8]} 33... Rc4 {[%clk 0:01:20.8]} 34. Qa2 {[%clk 0:01:08.6]} 34...
Kg7 {[%clk 0:01:11.1]} 35. Nf4 {[%clk 0:01:01.3]} 35... Rc1+ {[%clk 0:00:55.1]}
36. Kh2 {[%clk 0:01:01.9]} 36... Bd6 {[%clk 0:00:56.6]} 37. Nd3 {[%clk
0:00:51.2]} 37... Rc3 {[%clk 0:00:48.9]} 38. Qd2 {[%clk 0:00:49.1]} 38... Rc4
{[%clk 0:00:46.6]} 39. Kg1 {[%clk 0:00:43.5]} 39... Qe7 {[%clk 0:00:46.2]} 40.
Ne1 {[%clk 0:00:35.3]} 40... h4 {[%clk 0:00:43.9]} 41. gxh4 {[%clk 0:00:35.2]}
41... Qxh4 {[%clk 0:00:45.8]} 42. Nf3 {[%clk 0:00:33.8]} 42... Qe4 {[%clk
0:00:37.5]} 43. Ra1 {[%clk 0:00:31]} 43... Qf5 {[%clk 0:00:27.8]} 44. Rc1 {[%clk
0:00:28.1]} 44... g5 {[%clk 0:00:21.6]} 45. Qd1 {[%clk 0:00:24.6]} 45... g4
{[%clk 0:00:15.2]} 46. Nd2 {[%clk 0:00:24]} 46... Rxc1 {[%clk 0:00:14.9]} 47.
Qxc1 {[%clk 0:00:24.9]} 47... g3 {[%clk 0:00:14.4]} 48. fxg3 {[%clk 0:00:23.2]}
48... Bxg3 {[%clk 0:00:15.2]} 49. Nf3 {[%clk 0:00:24.3]} 49... Qd3 {[%clk
0:00:15.6]} 50. Kh1 {[%clk 0:00:16.6]} 50... Qe2 {[%clk 0:00:16.5]} 51. Ng1
{[%clk 0:00:14.3]} 51... Qh5+ {[%clk 0:00:16.2]} 52. Nh3 {[%clk 0:00:15.1]}
52... Qh6 {[%clk 0:00:16.9]} 53. Kg1 {[%clk 0:00:13.5]} 53... Bh4 {[%clk
0:00:16.8]} 54. Qd2 {[%clk 0:00:11.8]} 54... Bg5 {[%clk 0:00:17.4]} 55. Nxg5
{[%clk 0:00:10.9]} 55... Qxg5 {[%clk 0:00:19.3]} 56. Qc3 {[%clk 0:00:11.5]}
56... Qf6 {[%clk 0:00:19.4]} 57. Qd3 {[%clk 0:00:11.8]} 57... Qg5 {[%clk
0:00:19.3]} 58. Qe2 {[%clk 0:00:12.4]} 58... f6 {[%clk 0:00:17.8]} 59. Qf3
{[%clk 0:00:13.2]} 59... Kf7 {[%clk 0:00:18.5]} 60. Kf2 {[%clk 0:00:12.4]} 60...
Ke7 {[%clk 0:00:17.6]} 61. Qh3 {[%clk 0:00:11.8]} 61... Kd8 {[%clk 0:00:10.8]}
62. Qe6 {[%clk 0:00:11.3]} 62... Kc7 {[%clk 0:00:10.6]} 63. Qe7+ {[%clk
0:00:10.7]} 63... Kb6 {[%clk 0:00:11.7]} 64. Qc5+ {[%clk 0:00:10.4]} 64... Kc7
{[%clk 0:00:12.8]} 65. Qa7+ {[%clk 0:00:11.4]} 65... Kd6 {[%clk 0:00:13.1]} 66.
Qb8+ {[%clk 0:00:12.2]} 66... Kd7 {[%clk 0:00:14.3]} 67. Qh2 {[%clk 0:00:11]}
67... Qf5+ {[%clk 0:00:14.7]} 68. Kg1 {[%clk 0:00:11]} 68... Qb1+ {[%clk
0:00:15.1]} 69. Kf2 {[%clk 0:00:11.7]} 69... Qc2+ {[%clk 0:00:16.8]} 70. Kg3
{[%clk 0:00:12.7]} 70... Qg6+ {[%clk 0:00:17.3]} 71. Kf3 {[%clk 0:00:13]} 71...
Qe4+ {[%clk 0:00:18.2]} 72. Kf2 {[%clk 0:00:14.1]} 72... Qc2+ {[%clk 0:00:19.3]}
73. Kf3 {[%clk 0:00:14.9]} 73... Qe4+ {[%clk 0:00:20.5]} 74. Kf2 {[%clk
0:00:15.9]} 74... Qc2+ {[%clk 0:00:21.8]} 1/2-1/2